[Event "*** Titled Tuesday Blitz"]
[Site "Chess.com"]
[Date "2021.02.09"]
[Round "2"]
[White "Rytenko_V"]
[Black "ChampStan"]
[Result "1-0"]
[WhiteElo "2438"]
[BlackElo "2208"]
[TimeControl "180+1"]
[EndTime "10:16:36 PST"]
[Termination "Rytenko_V won by resignation"]

1. d4 {[%clk 0:03:00.9]} 1... Nf6 {[%clk 0:02:59.6]} 2. c4 {[%clk 0:03:00.9]}
2... g6 {[%clk 0:02:59.6]} 3. Nc3 {[%clk 0:03:01.4]} 3... d5 {[%clk 0:02:59.6]}
4. Nf3 {[%clk 0:03:00]} 4... Bg7 {[%clk 0:02:59.5]} 5. Bg5 {[%clk 0:03:00.1]}
5... Ne4 {[%clk 0:02:58.9]} 6. Bf4 {[%clk 0:02:56.4]} 6... Nxc3 {[%clk
0:02:58.4]} 7. bxc3 {[%clk 0:02:56.9]} 7... c5 {[%clk 0:02:58.1]} 8. e3 {[%clk
0:02:56.5]} 8... O-O {[%clk 0:02:57.6]} 9. Be2 {[%clk 0:02:56]} 9... Nc6 {[%clk
0:02:56.3]} 10. O-O {[%clk 0:02:55.6]} 10... cxd4 {[%clk 0:02:50]} 11. cxd4
{[%clk 0:02:54.3]} 11... dxc4 {[%clk 0:02:40.6]} 12. Bxc4 {[%clk 0:02:55.2]}
12... b6 {[%clk 0:02:39.9]} 13. Rc1 {[%clk 0:02:51.5]} 13... Bb7 {[%clk
0:02:39.7]} 14. Bb5 {[%clk 0:02:45.7]} 14... Rc8 {[%clk 0:02:37.1]} 15. Qa4
{[%clk 0:02:43.6]} 15... Na5 {[%clk 0:02:35.2]} 16. Ne5 {[%clk 0:02:33.1]} 16...
Qd5 {[%clk 0:02:13.6]} 17. f3 {[%clk 0:02:20.6]} 17... g5 {[%clk 0:01:50.8]} 18.
Bg3 {[%clk 0:02:05.9]} 18... Kh8 {[%clk 0:01:28.3]} 19. Rfd1 {[%clk 0:01:48.8]}
19... a6 {[%clk 0:01:12.1]} 20. Bd3 {[%clk 0:01:45.7]} 20... Qe6 {[%clk
0:00:51.9]} 21. Qd7 {[%clk 0:01:36.6]} 21... Qxd7 {[%clk 0:00:41.9]} 22. Nxd7
{[%clk 0:01:37.2]} 22... b5 {[%clk 0:00:33.3]} 23. Nxf8 {[%clk 0:01:31.8]} 23...
Rxf8 {[%clk 0:00:25.3]} 24. Bc7 {[%clk 0:01:22.5]} 24... Nc6 {[%clk 0:00:20.4]}
25. Be4 {[%clk 0:01:17.6]} 1-0

[Event "*** Titled Tuesday Blitz"]
[Site "Chess.com"]
[Date "2021.02.09"]
[Round "2"]
[White "SaqoChess_Twitch"]
[Black "GigaQuparadze"]
[Result "0-1"]
[WhiteElo "2550"]
[BlackElo "2909"]
[TimeControl "180+1"]
[EndTime "10:16:38 PST"]
[Termination "GigaQuparadze won by resignation"]

1. d4 {[%clk 0:03:00.9]} 1... Nf6 {[%clk 0:02:59]} 2. c4 {[%clk 0:03:00.3]} 2...
e6 {[%clk 0:02:59.2]} 3. Nc3 {[%clk 0:03:00.6]} 3... Bb4 {[%clk 0:02:58.5]} 4.
a3 {[%clk 0:03:01.2]} 4... Bxc3+ {[%clk 0:02:58.2]} 5. bxc3 {[%clk 0:03:02.1]}
5... c5 {[%clk 0:02:58.4]} 6. e3 {[%clk 0:03:02]} 6... Nc6 {[%clk 0:02:57.4]} 7.
Bd3 {[%clk 0:03:02.3]} 7... d6 {[%clk 0:02:52.6]} 8. Ne2 {[%clk 0:03:02.3]} 8...
b6 {[%clk 0:02:49.4]} 9. O-O {[%clk 0:02:58.4]} 9... O-O {[%clk 0:02:47.5]} 10.
Ng3 {[%clk 0:02:57.1]} 10... Na5 {[%clk 0:02:47.1]} 11. e4 {[%clk 0:02:52.4]}
11... Ba6 {[%clk 0:02:42.6]} 12. f4 {[%clk 0:02:43.2]} 12... Bxc4 {[%clk
0:02:34.7]} 13. e5 {[%clk 0:02:37]} 13... Nd5 {[%clk 0:02:20.8]} 14. Bxc4 {[%clk
0:02:27.4]} 14... Nxc4 {[%clk 0:02:21.7]} 15. Qd3 {[%clk 0:02:14.8]} 15... b5
{[%clk 0:02:19.5]} 16. a4 {[%clk 0:02:10.9]} 16... a6 {[%clk 0:02:17.3]} 17.
axb5 {[%clk 0:02:08.8]} 17... axb5 {[%clk 0:02:18.2]} 18. Rxa8 {[%clk 0:02:09]}
18... Qxa8 {[%clk 0:02:19]} 19. exd6 {[%clk 0:02:09.2]} 19... cxd4 {[%clk
0:02:19]} 20. Qxd4 {[%clk 0:01:57.4]} 20... Nxd6 {[%clk 0:02:18.2]} 21. Qe5
{[%clk 0:01:47.9]} 21... Qa7+ {[%clk 0:02:13.7]} 22. Kh1 {[%clk 0:01:47]} 22...
Nc4 {[%clk 0:02:13.7]} 23. Qg5 {[%clk 0:01:44.2]} 23... h6 {[%clk 0:02:12.1]}
24. Qg4 {[%clk 0:01:43.5]} 24... Nce3 {[%clk 0:02:11.4]} 25. Qf3 {[%clk
0:01:36.5]} 25... Nxf1 {[%clk 0:02:10.8]} 26. Nxf1 {[%clk 0:01:36.4]} 26... Qa1
{[%clk 0:02:07.4]} 27. Bd2 {[%clk 0:01:35.3]} 27... Nf6 {[%clk 0:02:05]} 28. h3
{[%clk 0:01:34.7]} 28... Rd8 {[%clk 0:02:04.3]} 29. Kh2 {[%clk 0:01:34.2]} 29...
Qa2 {[%clk 0:02:01.1]} 30. Be3 {[%clk 0:01:33.4]} 30... Qc4 {[%clk 0:02:00.8]}
31. Bd4 {[%clk 0:01:31.8]} 31... Rxd4 {[%clk 0:01:59.1]} 32. cxd4 {[%clk
0:01:31.1]} 32... Qxd4 {[%clk 0:02:00]} 33. Ng3 {[%clk 0:01:25.5]} 33... b4
{[%clk 0:01:58.1]} 34. f5 {[%clk 0:01:23]} 34... exf5 {[%clk 0:01:53.9]} 35.
Qxf5 {[%clk 0:01:14]} 35... Qd6 {[%clk 0:01:53.2]} 36. Qc8+ {[%clk 0:01:12.4]}
36... Kh7 {[%clk 0:01:53]} 37. h4 {[%clk 0:01:08.9]} 37... g6 {[%clk 0:01:49.9]}
38. Qb7 {[%clk 0:00:54.1]} 38... Kg7 {[%clk 0:01:49.4]} 39. Qf3 {[%clk 0:00:52]}
39... Nh5 {[%clk 0:01:48.9]} 0-1

[Event "*** Titled Tuesday Blitz"]
[Site "Chess.com"]
[Date "2021.02.09"]
[Round "2"]
[White "Akhayan"]
[Black "L1m96"]
[Result "0-1"]
[WhiteElo "2298"]
[BlackElo "2554"]
[TimeControl "180+1"]
[EndTime "10:16:41 PST"]
[Termination "L1m96 won by resignation"]

1. d4 {[%clk 0:03:00.9]} 1... Nf6 {[%clk 0:02:56]} 2. c4 {[%clk 0:03:00.5]} 2...
e6 {[%clk 0:02:54.4]} 3. Nc3 {[%clk 0:03:00.5]} 3... Bb4 {[%clk 0:02:54]} 4. e3
{[%clk 0:03:00.7]} 4... O-O {[%clk 0:02:53.5]} 5. Bd3 {[%clk 0:03:00.9]} 5... d5
{[%clk 0:02:53.5]} 6. Ne2 {[%clk 0:03:00.9]} 6... c5 {[%clk 0:02:45.9]} 7. a3
{[%clk 0:03:01]} 7... dxc4 {[%clk 0:02:45.5]} 8. Bxc4 {[%clk 0:02:55.6]} 8...
cxd4 {[%clk 0:02:44]} 9. axb4 {[%clk 0:02:54.3]} 9... dxc3 {[%clk 0:02:44]} 10.
Qxd8 {[%clk 0:02:52]} 10... Rxd8 {[%clk 0:02:43.7]} 11. Nxc3 {[%clk 0:02:49.2]}
11... Bd7 {[%clk 0:02:32.5]} 12. Ke2 {[%clk 0:02:38.2]} 12... Nc6 {[%clk
0:02:31.1]} 13. Na2 {[%clk 0:02:19]} 13... Ne5 {[%clk 0:02:25.3]} 14. b3 {[%clk
0:01:55.6]} 14... Rac8 {[%clk 0:02:21.9]} 15. Bb2 {[%clk 0:01:44]} 15... Nxc4
{[%clk 0:02:20.5]} 16. bxc4 {[%clk 0:01:44.2]} 16... Rxc4 {[%clk 0:02:19.7]} 17.
Rhc1 {[%clk 0:01:39.3]} 17... Bb5 {[%clk 0:02:15]} 18. Rxc4 {[%clk 0:01:12.8]}
18... Bxc4+ {[%clk 0:02:15.9]} 19. Ke1 {[%clk 0:01:13]} 19... Nd5 {[%clk
0:02:07.7]} 20. e4 {[%clk 0:00:36.5]} 20... Bxa2 {[%clk 0:02:01.2]} 21. exd5
{[%clk 0:00:36.3]} 21... Bxd5 {[%clk 0:02:02.1]} 22. Rxa7 {[%clk 0:00:35.2]}
22... Bxg2 {[%clk 0:02:02.1]} 23. Be5 {[%clk 0:00:29.8]} 23... Bf3 {[%clk
0:02:00.9]} 24. Ra1 {[%clk 0:00:27.4]} 24... f6 {[%clk 0:02:00.7]} 25. Bc3
{[%clk 0:00:24.6]} 25... Kf7 {[%clk 0:01:57.9]} 26. Rc1 {[%clk 0:00:24]} 26...
Rd7 {[%clk 0:01:49.8]} 27. Bd2 {[%clk 0:00:23.9]} 27... g5 {[%clk 0:01:47]} 28.
Rc3 {[%clk 0:00:23.9]} 28... g4 {[%clk 0:01:46.1]} 29. Ra3 {[%clk 0:00:23.7]}
29... e5 {[%clk 0:01:44]} 30. Ra7 {[%clk 0:00:23.6]} 30... h5 {[%clk 0:01:43.1]}
31. b5 {[%clk 0:00:23.8]} 31... h4 {[%clk 0:01:41]} 32. b6 {[%clk 0:00:24.2]}
32... Ke6 {[%clk 0:01:40.3]} 33. Ra8 {[%clk 0:00:24.3]} 33... Rd6 {[%clk
0:01:37.1]} 34. Re8+ {[%clk 0:00:18.1]} 34... Kf5 {[%clk 0:01:37]} 0-1

[Event "*** Titled Tuesday Blitz"]
[Site "Chess.com"]
[Date "2021.02.09"]
[Round "2"]
[White "CzechmVIII"]
[Black "KeithArkell"]
[Result "0-1"]
[WhiteElo "2262"]
[BlackElo "2468"]
[TimeControl "180+1"]
[EndTime "10:16:46 PST"]
[Termination "KeithArkell won by resignation"]

1. e4 {[%clk 0:03:00.9]} 1... c6 {[%clk 0:02:59.9]} 2. d4 {[%clk 0:03:00.2]}
2... d5 {[%clk 0:03:00.1]} 3. e5 {[%clk 0:03:00.5]} 3... c5 {[%clk 0:03:00.5]}
4. c4 {[%clk 0:02:59.5]} 4... e6 {[%clk 0:02:59.8]} 5. Nf3 {[%clk 0:02:58.3]}
5... cxd4 {[%clk 0:02:58.8]} 6. Nxd4 {[%clk 0:02:46.9]} 6... Nc6 {[%clk
0:02:58.6]} 7. Nxc6 {[%clk 0:02:34.8]} 7... bxc6 {[%clk 0:02:56.9]} 8. Nc3
{[%clk 0:02:33.5]} 8... Ne7 {[%clk 0:02:53]} 9. Be2 {[%clk 0:02:26.1]} 9... Ng6
{[%clk 0:02:52.4]} 10. f4 {[%clk 0:02:23.4]} 10... Bc5 {[%clk 0:02:50.8]} 11.
Qa4 {[%clk 0:01:55.6]} 11... Bd7 {[%clk 0:02:43.3]} 12. Bd2 {[%clk 0:01:44]}
12... Qb6 {[%clk 0:02:37.2]} 13. Qb3 {[%clk 0:01:27.9]} 13... Bf2+ {[%clk
0:02:29.7]} 14. Kf1 {[%clk 0:01:26.7]} 14... O-O {[%clk 0:02:17.1]} 15. Qxb6
{[%clk 0:01:23.4]} 15... Bxb6 {[%clk 0:02:15.4]} 16. Rc1 {[%clk 0:01:15.6]}
16... f6 {[%clk 0:02:11.4]} 17. cxd5 {[%clk 0:01:05.2]} 17... cxd5 {[%clk
0:01:59.1]} 18. exf6 {[%clk 0:01:03.1]} 18... Rxf6 {[%clk 0:01:56.8]} 19. g3
{[%clk 0:01:02.3]} 19... Rc8 {[%clk 0:01:42.3]} 20. Kg2 {[%clk 0:01:01.7]} 20...
Bc6 {[%clk 0:01:37.8]} 21. Bf3 {[%clk 0:01:01.5]} 21... Ne7 {[%clk 0:01:22.5]}
22. Rhe1 {[%clk 0:00:57.1]} 22... Nf5 {[%clk 0:01:19.7]} 23. Nd1 {[%clk
0:00:48.7]} 23... Nd4 {[%clk 0:01:15.1]} 24. Bc3 {[%clk 0:00:42.3]} 24... Nxf3
{[%clk 0:01:15.1]} 25. Bxf6 {[%clk 0:00:31.9]} 25... Nxe1+ {[%clk 0:01:14.8]}
26. Kh3 {[%clk 0:00:24.5]} 26... gxf6 {[%clk 0:01:02.3]} 0-1

[Event "*** Titled Tuesday Blitz"]
[Site "Chess.com"]
[Date "2021.02.09"]
[Round "2"]
[White "dukicz123"]
[Black "Genghis_K"]
[Result "0-1"]
[WhiteElo "2558"]
[BlackElo "2927"]
[TimeControl "180+1"]
[EndTime "10:17:03 PST"]
[Termination "Genghis_K won by resignation"]

1. e4 {[%clk 0:03:00.9]} 1... c5 {[%clk 0:02:59.7]} 2. Nf3 {[%clk 0:02:59.9]}
2... d6 {[%clk 0:02:59.9]} 3. d4 {[%clk 0:03:00.5]} 3... cxd4 {[%clk 0:03:00.3]}
4. Nxd4 {[%clk 0:03:01.4]} 4... Nf6 {[%clk 0:03:00.8]} 5. Nc3 {[%clk 0:03:02.1]}
5... a6 {[%clk 0:03:01.3]} 6. Bg5 {[%clk 0:03:02.7]} 6... Nbd7 {[%clk
0:02:58.1]} 7. Qe2 {[%clk 0:03:02.9]} 7... e6 {[%clk 0:02:53.8]} 8. f4 {[%clk
0:03:02.6]} 8... h6 {[%clk 0:02:53.9]} 9. Bh4 {[%clk 0:03:02.6]} 9... e5 {[%clk
0:02:54.5]} 10. fxe5 {[%clk 0:02:55.4]} 10... Nxe5 {[%clk 0:02:54.4]} 11. O-O-O
{[%clk 0:02:51.4]} 11... Be7 {[%clk 0:02:53]} 12. h3 {[%clk 0:02:37.8]} 12...
O-O {[%clk 0:02:46]} 13. Bf2 {[%clk 0:02:27.7]} 13... Bd7 {[%clk 0:02:16.4]} 14.
g4 {[%clk 0:02:19.6]} 14... Rc8 {[%clk 0:01:56.2]} 15. Nf5 {[%clk 0:01:48.3]}
15... Bxf5 {[%clk 0:01:42.7]} 16. gxf5 {[%clk 0:01:48.6]} 16... Rxc3 {[%clk
0:01:41.9]} 17. bxc3 {[%clk 0:01:48.7]} 17... Qa5 {[%clk 0:01:42.5]} 18. Rg1
{[%clk 0:01:12.3]} 18... Rc8 {[%clk 0:01:23.9]} 19. Qe3 {[%clk 0:01:01]} 19...
Rxc3 {[%clk 0:00:59.8]} 20. Qxh6 {[%clk 0:00:55.4]} 20... Nfg4 {[%clk
0:00:52.3]} 21. Rxg4 {[%clk 0:00:36.3]} 21... Nxg4 {[%clk 0:00:51.2]} 22. Qf4
{[%clk 0:00:20.5]} 22... Qxa2 {[%clk 0:00:46.6]} 23. Bd3 {[%clk 0:00:13.6]}
23... Nxf2 {[%clk 0:00:46.6]} 24. Qxf2 {[%clk 0:00:14]} 24... Bg5+ {[%clk
0:00:47]} 0-1

[Event "*** Titled Tuesday Blitz"]
[Site "Chess.com"]
[Date "2021.02.09"]
[Round "2"]
[White "Tenamu"]
[Black "esteban062000"]
[Result "1-0"]
[WhiteElo "2405"]
[BlackElo "2143"]
[TimeControl "180+1"]
[EndTime "10:17:04 PST"]
[Termination "Tenamu won on time"]

1. e4 {[%clk 0:03:00.9]} 1... c5 {[%clk 0:02:58.8]} 2. Nf3 {[%clk 0:03:00.8]}
2... g6 {[%clk 0:02:58.6]} 3. d4 {[%clk 0:03:00.1]} 3... cxd4 {[%clk 0:02:59.5]}
4. Qxd4 {[%clk 0:02:59.8]} 4... Nf6 {[%clk 0:02:59.4]} 5. Bb5 {[%clk 0:02:54.5]}
5... a6 {[%clk 0:02:16.8]} 6. e5 {[%clk 0:02:50.4]} 6... axb5 {[%clk 0:02:07.7]}
7. exf6 {[%clk 0:02:49]} 7... Nc6 {[%clk 0:01:57.8]} 8. Qh4 {[%clk 0:02:46.2]}
8... exf6 {[%clk 0:01:52.4]} 9. O-O {[%clk 0:02:45.5]} 9... d5 {[%clk
0:01:49.5]} 10. Bh6 {[%clk 0:02:44.5]} 10... g5 {[%clk 0:01:02.2]} 11. Qh5
{[%clk 0:02:42.8]} 11... Bg4 {[%clk 0:01:01.7]} 12. Re1+ {[%clk 0:02:42.5]}
12... Ne7 {[%clk 0:00:56]} 13. Qxg4 {[%clk 0:02:40.7]} 13... Bxh6 {[%clk
0:00:55.8]} 14. Qh5 {[%clk 0:02:35.4]} 14... Bg7 {[%clk 0:00:54]} 15. Nc3 {[%clk
0:02:33.3]} 15... O-O {[%clk 0:00:53.2]} 16. Rad1 {[%clk 0:02:31.1]} 16... b4
{[%clk 0:00:48.8]} 17. Ne4 {[%clk 0:02:27.8]} 17... dxe4 {[%clk 0:00:43]} 18.
Rxd8 {[%clk 0:02:24.3]} 18... Rfxd8 {[%clk 0:00:43.9]} 19. h4 {[%clk 0:02:22.3]}
19... Rxa2 {[%clk 0:00:20.7]} 20. Rxe4 {[%clk 0:02:19]} 20... Rd1+ {[%clk
0:00:20.1]} 21. Kh2 {[%clk 0:02:18.3]} 21... Ng6 {[%clk 0:00:18.5]} 22. Re8+
{[%clk 0:02:17]} 22... Bf8 {[%clk 0:00:18]} 23. hxg5 {[%clk 0:02:13.4]} 23...
Raa1 {[%clk 0:00:17.4]} 24. Kg3 {[%clk 0:02:08.6]} 24... fxg5 {[%clk 0:00:16.6]}
25. Qxg5 {[%clk 0:02:03.9]} 25... Kg7 {[%clk 0:00:15.9]} 26. Kg4 {[%clk
0:01:32.3]} 26... h5+ {[%clk 0:00:14.8]} 27. Qxh5 {[%clk 0:01:28.2]} 27... Rh1
{[%clk 0:00:09.5]} 28. Qd5 {[%clk 0:01:23.9]} 28... Ra6 {[%clk 0:00:05.1]} 29.
Qd4+ {[%clk 0:01:21.4]} 29... Rf6 {[%clk 0:00:04.6]} 30. g3 {[%clk 0:01:17.4]}
1-0

[Event "*** Titled Tuesday Blitz"]
[Site "Chess.com"]
[Date "2021.02.09"]
[Round "2"]
[White "FloMaster111"]
[Black "MatthewG-p4p"]
[Result "0-1"]
[WhiteElo "2506"]
[BlackElo "2819"]
[TimeControl "180+1"]
[EndTime "10:17:12 PST"]
[Termination "MatthewG-p4p won by resignation"]

1. e4 {[%clk 0:03:00.9]} 1... e6 {[%clk 0:02:58.2]} 2. d4 {[%clk 0:03:00.7]}
2... d5 {[%clk 0:02:58.5]} 3. e5 {[%clk 0:03:01.3]} 3... c5 {[%clk 0:02:58.6]}
4. c3 {[%clk 0:03:01.9]} 4... Qb6 {[%clk 0:02:58.7]} 5. Nf3 {[%clk 0:02:59.7]}
5... Nc6 {[%clk 0:02:58.3]} 6. a3 {[%clk 0:02:58.1]} 6... Nh6 {[%clk 0:02:58]}
7. b4 {[%clk 0:02:58.3]} 7... cxd4 {[%clk 0:02:58.1]} 8. cxd4 {[%clk 0:02:59.2]}
8... Nf5 {[%clk 0:02:58.6]} 9. Be3 {[%clk 0:02:59.2]} 9... f6 {[%clk 0:02:58.7]}
10. Bd3 {[%clk 0:02:50.5]} 10... Nxe3 {[%clk 0:02:58.4]} 11. fxe3 {[%clk
0:02:50.8]} 11... fxe5 {[%clk 0:02:59]} 12. Nxe5 {[%clk 0:02:51.7]} 12... Nxe5
{[%clk 0:02:58.8]} 13. Qh5+ {[%clk 0:02:52.4]} 13... Nf7 {[%clk 0:02:50]} 14.
O-O {[%clk 0:02:52.3]} 14... g6 {[%clk 0:02:46]} 15. Qf3 {[%clk 0:01:30.3]}
15... Nd6 {[%clk 0:02:44.4]} 16. Nc3 {[%clk 0:01:30.3]} 16... Bd7 {[%clk
0:02:41.5]} 17. Qf6 {[%clk 0:01:27]} 17... Rg8 {[%clk 0:02:39.4]} 18. Bb5 {[%clk
0:01:17]} 18... Nf5 {[%clk 0:02:03.9]} 19. Bxd7+ {[%clk 0:01:14.4]} 19... Kxd7
{[%clk 0:02:04.8]} 20. Qf7+ {[%clk 0:01:11.3]} 20... Be7 {[%clk 0:02:04.8]} 21.
Na4 {[%clk 0:01:02.8]} 21... Qd6 {[%clk 0:01:16.2]} 22. Nc5+ {[%clk 0:01:02.9]}
22... Kc6 {[%clk 0:01:12.8]} 23. Nxe6 {[%clk 0:00:57.2]} 23... Kb6 {[%clk
0:01:11.8]} 24. a4 {[%clk 0:00:55.1]} 24... a6 {[%clk 0:01:08.7]} 25. Rfc1
{[%clk 0:00:46.5]} 25... Nh6 {[%clk 0:01:06.2]} 26. Qxh7 {[%clk 0:00:40.7]}
26... Qxe6 {[%clk 0:00:48]} 27. Qxh6 {[%clk 0:00:40.7]} 27... Rh8 {[%clk
0:00:48.5]} 28. Qf4 {[%clk 0:00:33.8]} 28... Bd6 {[%clk 0:00:48.6]} 0-1

[Event "*** Titled Tuesday Blitz"]
[Site "Chess.com"]
[Date "2021.02.09"]
[Round "2"]
[White "Artyom_ChessMate"]
[Black "Walter_White_Poland"]
[Result "1-0"]
[WhiteElo "2546"]
[BlackElo "2296"]
[TimeControl "180+1"]
[EndTime "10:17:12 PST"]
[Termination "Artyom_ChessMate won by resignation"]

1. e4 {[%clk 0:03:00.9]} 1... e5 {[%clk 0:02:59.8]} 2. Nf3 {[%clk 0:02:59.5]}
2... Nc6 {[%clk 0:02:59.9]} 3. Bb5 {[%clk 0:02:58.7]} 3... a6 {[%clk 0:03:00]}
4. Bxc6 {[%clk 0:02:58.2]} 4... dxc6 {[%clk 0:02:59.3]} 5. O-O {[%clk
0:02:59.1]} 5... Bg4 {[%clk 0:02:59.3]} 6. h3 {[%clk 0:02:58.1]} 6... h5 {[%clk
0:02:58.5]} 7. d3 {[%clk 0:02:57.9]} 7... Qf6 {[%clk 0:02:58.4]} 8. Nbd2 {[%clk
0:02:57.5]} 8... Ne7 {[%clk 0:02:57.6]} 9. Re1 {[%clk 0:02:55.6]} 9... Ng6
{[%clk 0:02:57.4]} 10. d4 {[%clk 0:02:55.5]} 10... Bd6 {[%clk 0:02:56.3]} 11.
hxg4 {[%clk 0:02:51.4]} 11... hxg4 {[%clk 0:02:56.5]} 12. Nh2 {[%clk 0:02:51.2]}
12... Rxh2 {[%clk 0:02:56.1]} 13. Qxg4 {[%clk 0:02:50.3]} 13... Rh4 {[%clk
0:02:56]} 14. Qf5 {[%clk 0:02:49.6]} 14... exd4 {[%clk 0:02:55.8]} 15. g3 {[%clk
0:02:37]} 15... Rh7 {[%clk 0:02:34.5]} 16. Qxf6 {[%clk 0:02:34.2]} 16... gxf6
{[%clk 0:02:34.7]} 17. a3 {[%clk 0:02:21.1]} 17... c5 {[%clk 0:02:33.6]} 18. f4
{[%clk 0:02:19.9]} 18... Kd7 {[%clk 0:02:32.2]} 19. Nf3 {[%clk 0:02:18.7]} 19...
Rah8 {[%clk 0:02:27.3]} 20. Kf2 {[%clk 0:02:12.7]} 20... Rh2+ {[%clk 0:02:19.6]}
21. Nxh2 {[%clk 0:02:08.6]} 21... Rxh2+ {[%clk 0:02:19.7]} 22. Kf3 {[%clk
0:02:09.5]} 22... Rxc2 {[%clk 0:02:19.7]} 23. Re2 {[%clk 0:02:09.6]} 23... Rxe2
{[%clk 0:02:15.6]} 24. Kxe2 {[%clk 0:02:10.5]} 24... c4 {[%clk 0:02:15.5]} 25.
Bd2 {[%clk 0:02:08.9]} 25... Ne7 {[%clk 0:02:09.9]} 26. Rh1 {[%clk 0:02:06.6]}
26... f5 {[%clk 0:02:08.8]} 27. e5 {[%clk 0:02:02.2]} 27... Bc5 {[%clk
0:02:08.8]} 28. Rh7 {[%clk 0:02:01.5]} 28... Ke6 {[%clk 0:02:01.1]} 29. Rh6+
{[%clk 0:01:56.5]} 29... Kd5 {[%clk 0:01:30.2]} 30. Rf6 {[%clk 0:01:52.3]} 30...
Ke4 {[%clk 0:01:29.9]} 31. Rxf7 {[%clk 0:01:43.4]} 31... Nd5 {[%clk 0:01:29.6]}
32. Bb4 {[%clk 0:01:39.6]} 32... Nxb4 {[%clk 0:01:21.2]} 33. axb4 {[%clk
0:01:40.5]} 33... d3+ {[%clk 0:01:21.6]} 34. Kd1 {[%clk 0:01:39.4]} 34... Bd4
{[%clk 0:01:16.6]} 35. e6 {[%clk 0:01:37.1]} 35... Bxb2 {[%clk 0:01:14.6]} 36.
e7 {[%clk 0:01:36.6]} 36... c3 {[%clk 0:01:14.1]} 37. e8=Q+ {[%clk 0:01:37.5]}
37... Kf3 {[%clk 0:01:14.3]} 38. Qe1 {[%clk 0:01:19.8]} 38... c2+ {[%clk
0:01:12.1]} 39. Kd2 {[%clk 0:01:19.1]} 39... c1=Q+ {[%clk 0:00:50.8]} 40. Qxc1
{[%clk 0:01:17.3]} 40... Bxc1+ {[%clk 0:00:51.7]} 41. Kxc1 {[%clk 0:01:18.2]}
41... Kxg3 {[%clk 0:00:52.1]} 42. Rxc7 {[%clk 0:01:17.6]} 42... b5 {[%clk
0:00:48.3]} 43. Kd2 {[%clk 0:01:18.5]} 43... Kxf4 {[%clk 0:00:48.5]} 44. Rc6
{[%clk 0:01:19]} 44... Ke4 {[%clk 0:00:46.9]} 45. Rxa6 {[%clk 0:01:19.9]} 45...
Kd4 {[%clk 0:00:47.1]} 46. Rc6 {[%clk 0:01:18.5]} 46... f4 {[%clk 0:00:46.8]}
47. Rc5 {[%clk 0:01:17.6]} 47... f3 {[%clk 0:00:45.9]} 48. Rxb5 {[%clk
0:01:17.2]} 48... Ke4 {[%clk 0:00:45.9]} 49. Rb8 {[%clk 0:01:14.6]} 1-0

[Event "*** Titled Tuesday Blitz"]
[Site "Chess.com"]
[Date "2021.02.09"]
[Round "2"]
[White "ARTHURMOTIVATOR"]
[Black "csati17"]
[Result "0-1"]
[WhiteElo "2303"]
[BlackElo "2558"]
[TimeControl "180+1"]
[EndTime "10:17:14 PST"]
[Termination "csati17 won by resignation"]

1. e4 {[%clk 0:03:00.9]} 1... e6 {[%clk 0:03:00.4]} 2. b3 {[%clk 0:02:59.3]}
2... d5 {[%clk 0:02:58.6]} 3. Bb2 {[%clk 0:02:59.3]} 3... Nf6 {[%clk 0:02:59.2]}
4. e5 {[%clk 0:02:58.6]} 4... Nfd7 {[%clk 0:02:59.8]} 5. f4 {[%clk 0:02:59]}
5... c5 {[%clk 0:02:59.9]} 6. Qg4 {[%clk 0:02:58.8]} 6... Nc6 {[%clk 0:02:59.8]}
7. Nf3 {[%clk 0:02:58.3]} 7... h5 {[%clk 0:02:59.7]} 8. Qh3 {[%clk 0:02:54.8]}
8... Rb8 {[%clk 0:02:34.4]} 9. a4 {[%clk 0:02:47.9]} 9... c4 {[%clk 0:02:18.5]}
10. Nc3 {[%clk 0:02:38]} 10... cxb3 {[%clk 0:02:13.5]} 11. cxb3 {[%clk
0:02:36.7]} 11... Nc5 {[%clk 0:02:12.9]} 12. Nb5 {[%clk 0:02:12.1]} 12... Nxb3
{[%clk 0:02:01]} 13. Ra3 {[%clk 0:01:42.5]} 13... Nca5 {[%clk 0:01:48]} 14. Nd6+
{[%clk 0:01:37.5]} 14... Bxd6 {[%clk 0:01:47.5]} 15. exd6 {[%clk 0:01:38.4]}
15... f6 {[%clk 0:01:42.1]} 16. Bb5+ {[%clk 0:01:32.7]} 16... Bd7 {[%clk
0:01:41.6]} 17. Bd3 {[%clk 0:01:32]} 17... Qb6 {[%clk 0:01:32]} 18. Bd4 {[%clk
0:00:54.1]} 18... Nxd4 {[%clk 0:01:29]} 19. Bg6+ {[%clk 0:00:43.8]} 19... Kd8
{[%clk 0:01:26.7]} 20. Nxd4 {[%clk 0:00:27.7]} 20... Qxd4 {[%clk 0:01:27.6]} 21.
Rc3 {[%clk 0:00:27.2]} 21... Nc4 {[%clk 0:01:23]} 22. Rd3 {[%clk 0:00:21.1]}
22... Qxf4 {[%clk 0:01:21.4]} 23. Rf1 {[%clk 0:00:19.5]} 23... Qg5 {[%clk
0:01:17.5]} 24. Bf7 {[%clk 0:00:16.7]} 24... Rf8 {[%clk 0:01:04.8]} 25. Bxh5
{[%clk 0:00:15.8]} 25... Rh8 {[%clk 0:01:04.3]} 26. g4 {[%clk 0:00:14]} 26... g6
{[%clk 0:01:04]} 27. Qf3 {[%clk 0:00:10.8]} 27... gxh5 {[%clk 0:01:04]} 28. gxh5
{[%clk 0:00:08.4]} 28... Ne5 {[%clk 0:01:02.8]} 0-1

[Event "*** Titled Tuesday Blitz"]
[Site "Chess.com"]
[Date "2021.02.09"]
[Round "2"]
[White "DamianoLew95"]
[Black "Jospem"]
[Result "0-1"]
[WhiteElo "2588"]
[BlackElo "3044"]
[TimeControl "180+1"]
[EndTime "10:17:15 PST"]
[Termination "Jospem won by resignation"]

1. d4 {[%clk 0:03:00.9]} 1... Nf6 {[%clk 0:02:59.8]} 2. Bf4 {[%clk 0:02:59.6]}
2... e6 {[%clk 0:02:57.4]} 3. e3 {[%clk 0:02:59.1]} 3... b6 {[%clk 0:02:57.7]}
4. Qf3 {[%clk 0:02:58.4]} 4... Nc6 {[%clk 0:02:54.5]} 5. Be2 {[%clk 0:02:56.8]}
5... Bb7 {[%clk 0:02:54.1]} 6. Qg3 {[%clk 0:02:54.5]} 6... d6 {[%clk 0:02:48.3]}
7. Nd2 {[%clk 0:02:53.8]} 7... g6 {[%clk 0:02:47.8]} 8. h4 {[%clk 0:02:51.6]}
8... h6 {[%clk 0:02:43.2]} 9. Ngf3 {[%clk 0:02:50.6]} 9... Nh5 {[%clk
0:02:41.5]} 10. Qh2 {[%clk 0:02:48.6]} 10... Qe7 {[%clk 0:02:39.6]} 11. O-O-O
{[%clk 0:02:31.5]} 11... O-O-O {[%clk 0:02:34.1]} 12. Kb1 {[%clk 0:02:25.3]}
12... Bg7 {[%clk 0:02:33.3]} 13. Nc4 {[%clk 0:02:13.3]} 13... f5 {[%clk
0:02:30]} 14. d5 {[%clk 0:02:00.2]} 14... exd5 {[%clk 0:02:23.9]} 15. Rxd5
{[%clk 0:01:59.3]} 15... Nxf4 {[%clk 0:02:10.6]} 16. Qxf4 {[%clk 0:01:52.5]}
16... Ne5 {[%clk 0:02:10]} 17. Rdd1 {[%clk 0:01:36]} 17... Ng4 {[%clk
0:02:08.6]} 18. Rhf1 {[%clk 0:01:11.9]} 18... Kb8 {[%clk 0:01:52.5]} 19. h5
{[%clk 0:01:11.9]} 19... Qf6 {[%clk 0:01:37.6]} 20. c3 {[%clk 0:00:57.8]} 20...
g5 {[%clk 0:01:35]} 21. Qg3 {[%clk 0:00:49.4]} 21... d5 {[%clk 0:01:27.2]} 22.
Na3 {[%clk 0:00:43.3]} 22... Rhe8 {[%clk 0:01:01.8]} 23. Nd4 {[%clk 0:00:41]}
23... a6 {[%clk 0:00:54.4]} 24. Bxg4 {[%clk 0:00:34.9]} 24... fxg4 {[%clk
0:00:54.7]} 25. Qxg4 {[%clk 0:00:35.2]} 25... c5 {[%clk 0:00:37.7]} 26. Nf5
{[%clk 0:00:35.1]} 26... Bf8 {[%clk 0:00:38]} 27. Qg3+ {[%clk 0:00:34.1]} 27...
Ka7 {[%clk 0:00:37.6]} 28. Qf3 {[%clk 0:00:32.7]} 28... d4 {[%clk 0:00:35]} 0-1